fUST/lending_fUST_20260112
["ID","MTS","AMOUNT","RATE_DAILY","PERIOD"]
[401369045,1768161033153,-1270.77091073,0.00012329,2]
[401369046,1768161033163,-1270.77091073,0.00012329,2]
[401369047,1768161033173,-1270.77091073,0.00012329,2]
[401369048,1768161033182,-1270.77091073,0.00012329,2]
[401369049,1768161033191,-1270.77091073,0.00012329,2]
[401369050,1768161033201,-1270.77091073,0.00012329,2]
[401369051,1768161033210,-1270.77091073,0.00012329,2]
[401369052,1768161033220,-1270.77091073,0.00012329,2]
[401369053,1768161033229,-1270.77091073,0.00012329,2]
[401369054,1768161033240,-1270.77091073,0.00012329,2]
[401369055,1768161033251,-2689.11521755,0.00012329,2]
[401369056,1768161033262,-2689.11521755,0.00012329,2]
[401369057,1768161033273,-2689.11521755,0.00012329,2]
[401369058,1768161033283,-2689.11521755,0.00012329,2]
[401369059,1768161033293,-2689.11521755,0.00012329,2]
[401369060,1768161033304,-2689.11521755,0.00012329,2]
[401369061,1768161033314,-2689.11521755,0.00012329,2]
[401369062,1768161033324,-2689.11521755,0.00012329,2]
[401369063,1768161033333,-2689.11521755,0.00012329,2]
[401369064,1768161033343,-2689.11521755,0.00012329,2]
[401369065,1768161033353,-2689.11521755,0.00012329,2]
[401369066,1768161033362,-2689.11521755,0.00012329,2]
[401369067,1768161033371,-624.6546953,0.00012329,2]
[401369068,1768161033385,-373.11910904,0.00012329,2]
[401369076,1768161037784,-154.1,0.000126,2]
[401369077,1768161037793,-151.0,0.000126,2]
[401369078,1768161037803,-250.0,0.00012662,2]
[401369080,1768161037812,-5373.79956998,0.000129,2]
[401369081,1768161037826,-3037.48159621,0.000129,2]
[401369082,1768161037952,-4286.37324949,0.000129,2]
[401369083,1768161037962,-823.0,0.00013011,2]
[401369084,1768161037971,-1000.0,0.00013271,2]
[401369085,1768161037981,-155.72124395,0.00013273,2]
[401369086,1768161037991,-500.0,0.00013273,2]
[401369087,1768161038000,-500.0,0.00013273,2]
[401369088,1768161038009,-500.0,0.00013273,2]
[401369089,1768161038018,-503.26850674,0.00013273,2]
[401369090,1768161038028,-500.0,0.00013273,2]
[401369091,1768161038037,-500.0,0.00013273,2]
[401369092,1768161038047,-500.0,0.00013273,2]
[401369093,1768161038057,-500.0,0.00013273,2]
[401369094,1768161038066,-500.0,0.00013273,2]
[401369095,1768161038076,-500.0,0.00013273,2]
[401369096,1768161038085,-500.0,0.00013273,2]
[401369097,1768161038094,-500.0,0.00013273,2]
[401369098,1768161038104,-154.1,0.000134,2]
[401369099,1768161038114,-152.19,0.000134,2]
[401369100,1768161038123,-151.0,0.000135,2]
[401369101,1768161038132,-501.11369787,0.00013584,2]
[401369102,1768161038142,-300.0,0.00013673,2]
[401369103,1768161038151,-500.0,0.00013698,2]
[401369104,1768161038160,-500.0,0.00013698,2]
[401369105,1768161038169,-500.0,0.00013698,2]
[401369106,1768161038178,-500.0,0.00013698,2]
[401369107,1768161038188,-500.0,0.00013698,2]
[401369108,1768161038197,-500.0,0.00013698,2]
[401369109,1768161038206,-500.0,0.00013698,2]
[401369110,1768161038216,-500.0,0.00013698,2]
[401369111,1768161038225,-500.0,0.00013698,2]
[401369112,1768161038234,-620.51614657,0.00013698,2]
[401369113,1768161038244,-12011.786733,0.00013699,2]
[401369114,1768161038253,-1000.0,0.00013699,2]
[401369115,1768161038264,-500.0,0.00013699,2]
[401369116,1768161038274,-500.0,0.00013699,2]
[401369117,1768161038284,-500.0,0.00013699,2]
[401369118,1768161038293,-500.0,0.00013699,2]
[401369119,1768161038303,-500.0,0.00013699,2]
[401369120,1768161038312,-500.0,0.00013699,2]
[401369121,1768161038322,-500.0,0.00013699,2]
[401369122,1768161038333,-500.0,0.00013699,2]
[401369123,1768161038342,-500.0,0.00013699,2]
[401369124,1768161038352,-504.51727604,0.00013699,2]
[401369125,1768161038362,-500.0,0.00013699,2]
[401369126,1768161038371,-500.0,0.00013699,2]
[401369127,1768161038381,-1000.0,0.00013821,2]
[401369128,1768161038392,-1000.0,0.00013821,2]
[401369129,1768161038408,-1000.0,0.00013821,2]
[401369130,1768161038418,-1000.0,0.00013821,2]
[401369131,1768161038431,-1000.0,0.00013821,2]
[401369132,1768161038444,-1000.0,0.00013821,2]
[401369133,1768161038454,-1000.0,0.00013821,2]
[401369134,1768161038464,-1000.0,0.00013821,2]
[401369135,1768161038477,-1000.0,0.00013821,2]
[401369136,1768161038487,-1000.0,0.00013821,2]
[401369137,1768161038498,-3985.4877388,0.00014,2]
[401369138,1768161038508,-12697.65441561,0.00014061,2]
[401369139,1768161038517,-154.1,0.000141,2]
[401369140,1768161038527,-151.0,0.000142,2]
[401369141,1768161038536,-600.0,0.00014221,2]
[401369142,1768161038546,-319.8575815,0.00014247,2]
[401369143,1768161038556,-1000.0,0.00014247,2]
[401369144,1768161038565,-1000.0,0.00014247,2]
[401369145,1768161038575,-1000.0,0.00014247,2]
[401369146,1768161038585,-1000.0,0.00014247,2]
[401369147,1768161038595,-879.03607709,0.00014247,2]
[401369148,1768161038605,-1000.0,0.00014247,2]
[401369149,1768161038614,-1000.0,0.00014247,2]
[401369150,1768161038624,-426.89565163,0.00014247,2]
[401369151,1768161038633,-1000.0,0.00014247,2]
[401369152,1768161038642,-1000.0,0.00014247,2]
[401369153,1768161038652,-151.0,0.000143,2]
[401369154,1768161038661,-428.0,0.00014312,2]
[401369155,1768161038671,-1500.0,0.00014368,2]
[401369156,1768161038679,-1500.0,0.00014368,2]
[401369157,1768161038689,-1500.0,0.00014368,2]
[401369158,1768161038699,-1500.0,0.00014368,2]
[401369159,1768161038708,-1500.0,0.00014368,2]
[401369160,1768161038718,-1500.0,0.00014368,2]
[401369161,1768161038727,-1178.38612751,0.00014368,2]
[401369162,1768161038737,-397.40421659,0.00014368,2]
[401369163,1768161038746,-1500.0,0.00014368,2]
[401369164,1768161038756,-1500.0,0.00014368,2]
[401369165,1768161038765,-5000.0,0.0001451,2]
[401369167,1768161038775,-1000.0,0.00014598,2]
[401369168,1768161038784,-244.0,0.00014598,2]
[401369170,1768161038793,-900.0,0.00014768,2]
[401369171,1768161038803,-1500.0,0.00014795,2]
[401369172,1768161038812,-1502.60955562,0.00014795,2]
[401369173,1768161038821,-1500.0,0.00014795,2]
[401369174,1768161038831,-1500.0,0.00014795,2]
[401369175,1768161038840,-1500.0,0.00014795,2]
[401369176,1768161038850,-1500.0,0.00014795,2]
[401369177,1768161038861,-1500.0,0.00014795,2]
[401369178,1768161038871,-152.19,0.000148,2]
[401369179,1768161038881,-100000.0,0.00014882,2]
[401369180,1768161038891,-154.1,0.000149,2]
[401369181,1768161038900,-2000.0,0.00014916,2]
[401369182,1768161038909,-2000.0,0.00014916,2]
[401369183,1768161038918,-2000.0,0.00014916,2]
[401369184,1768161038928,-2000.0,0.00014916,2]
[401369185,1768161038939,-2000.0,0.00014916,2]
[401369186,1768161038949,-194.80800863,0.00014916,2]
[401369187,1768161038959,-2000.0,0.00014916,2]
[401369188,1768161038970,-2000.0,0.00014916,2]
[401369189,1768161038980,-1000.0,0.00015,2]
[401369190,1768161038990,-842.382663,0.00015068,2]
[401369191,1768161039000,-800.0,0.00015068,2]
[401369192,1768161039011,-151.0,0.000151,2]
[401369193,1768161039021,-1200.0,0.00015316,2]
[401369194,1768161039031,-2000.0,0.00015342,2]
[401369195,1768161039040,-2000.0,0.00015342,2]
[401369196,1768161039050,-2000.0,0.00015342,2]
[401369197,1768161039059,-1134.65901332,0.00015342,2]
[401369198,1768161039069,-2000.0,0.00015342,2]
[401369199,1768161039079,-2000.0,0.00015342,2]
[401369200,1768161039089,-151.0,0.000154,2]
[401369201,1768161039099,-2500.0,0.00015464,2]
[401369202,1768161039109,-2500.0,0.00015464,2]
[401369203,1768161039119,-2500.0,0.00015464,2]
[401369204,1768161039128,-2500.0,0.00015464,2]
[401369205,1768161039138,-2500.0,0.00015464,2]
[401369206,1768161039148,-2500.0,0.00015464,2]
[401369207,1768161039158,-2500.0,0.00015464,2]
[401369208,1768161039169,-567.43756965,0.00015584,2]
[401369209,1768161039179,-500.0,0.00015617,2]
[401369210,1768161039189,-151.52117963,0.00015617,2]
[401369211,1768161039199,-500.0,0.00015617,2]
[401369212,1768161039209,-154.1,0.000157,2]
[401369213,1768161039218,-500.0,0.00015754,2]
[401369214,1768161039229,-500.0,0.00015754,2]
[401369215,1768161039239,-1500.0,0.00015864,2]
[401369216,1768161039249,-2500.0,0.0001589,2]
[401369217,1768161039258,-1052.92932298,0.0001589,2]
[401369218,1768161039267,-2500.0,0.0001589,2]
[401369219,1768161039277,-2500.0,0.0001589,2]
[401369220,1768161039287,-2500.0,0.0001589,2]
[401369221,1768161039296,-500.0,0.00015891,2]
[401369222,1768161039306,-500.0,0.00015891,2]
[401369223,1768161039315,-151.0,0.000159,2]
[401369224,1768161039325,-1020.77887688,0.00016012,2]
[401369226,1768161039334,-3000.0,0.00016012,2]
[401369227,1768161039344,-3000.0,0.00016012,2]
[401369228,1768161039353,-3000.0,0.00016012,2]
[401369229,1768161039363,-3000.0,0.00016012,2]
[401369230,1768161039372,-3000.0,0.00016012,2]
[401369231,1768161039384,-3000.0,0.00016012,2]
[401369232,1768161039394,-500.0,0.00016028,2]
[401369233,1768161039406,-500.0,0.00016028,2]
[401369234,1768161039416,-259.14783661,0.00016028,2]
[401369235,1768161039426,-1000.0,0.00016058,2]
[401369236,1768161039438,-492.0,0.00016058,2]
[401369238,1768161039447,-1600.0,0.00016164,2]
[401369239,1768161039457,-223.11910904,0.00016165,2]
[401369240,1768161039466,-500.0,0.00016165,2]
[401369241,1768161039476,-152.19,0.000162,2]
[401369242,1768161039487,-227.35465744,0.00016302,2]
[401369243,1768161039502,-154.1,0.000164,2]
[401369244,1768161039512,-1800.0,0.00016412,2]
[401369246,1768161039522,-500.0,0.00016438,2]
[401369247,1768161039532,-500.0,0.00016438,2]
[401369249,1768161039541,-500.0,0.00016438,2]
[401369250,1768161039551,-500.0,0.00016438,2]
[401369252,1768161039561,-423.20869213,0.00016438,2]
[401369253,1768161039571,-500.0,0.00016438,2]
[401369256,1768161039581,-164.19129262,0.00016438,2]
[401369258,1768161039591,-1578.16970935,0.00016438,2]
[401369260,1768161039601,-3000.0,0.00016438,2]
[401369262,1768161039610,-3000.0,0.00016438,2]
[401369264,1768161039620,-3000.0,0.00016438,2]
[401369266,1768161039630,-260.15865923,0.00016438,2]
[401369268,1768161039640,-200.0,0.00016473,2]
[401369269,1768161039653,-3142.48470631,0.0001656,2]
[401369271,1768161039663,-3500.0,0.0001656,2]
[401369274,1768161039673,-3500.0,0.0001656,2]
[401369275,1768161039682,-2000.0,0.0001656,2]
[401369277,1768161039691,-3500.0,0.0001656,2]
[401369279,1768161039700,-3500.0,0.0001656,2]
[401369281,1768161039710,-151.0,0.000166,2]
[401369283,1768161039719,-151.0,0.000167,2]
[401369285,1768161039728,-3985.48773877,0.000167,2]
[401369287,1768161039737,-1344.72420012,0.0001696,2]
[401369289,1768161039746,-3500.0,0.00016986,2]
[401369291,1768161039757,-3500.0,0.00016986,2]
[401369293,1768161039767,-3500.0,0.00016986,2]
[401369295,1768161039778,-1495.04726907,0.00017108,2]
[401369297,1768161039788,-378.46600243,0.00017108,2]
[401369299,1768161039797,-4000.0,0.00017108,2]
[401369301,1768161039806,-4000.0,0.00017108,2]
[401369303,1768161039815,-154.1,0.000172,2]
[401369305,1768161039824,-1901.71937705,0.0001726,2]
[401369307,1768161039834,-5000.0,0.00017412,2]
[401369309,1768161039843,-4000.0,0.00017534,2]
[401369322,1768161039945,-4000.0,0.00017534,2]
[401369324,1768161039956,-4000.0,0.00017534,2]
[401369326,1768161039965,-633.76144142,0.00017584,2]
[401369328,1768161039975,-151.0,0.000176,2]
[401369330,1768161039984,-152.19,0.000176,2]
[401369332,1768161039993,-2500.0,0.00017656,2]
[401369334,1768161040003,-3033.32597111,0.00017656,2]
[401369336,1768161040012,-1000.0,0.00017663,2]
[401369338,1768161040021,-791.0,0.00017663,2]
[401369340,1768161040030,-151.0,0.000178,2]
[401369342,1768161040039,-200.0,0.00017842,2]
[401369344,1768161040049,-154.1,0.000179,2]
[401369346,1768161040058,-12697.65441561,0.00017924,2]
[401369348,1768161040067,-155.5739919,0.00017945,2]
[401369350,1768161040076,-4500.0,0.00018082,2]
[401369352,1768161040085,-4500.0,0.00018082,2]
[401369354,1768161040094,-4500.0,0.00018082,2]
[401369356,1768161040103,-151.0,0.000184,2]
[401369358,1768161040112,-842.382663,0.00018493,2]
[401369360,1768161040121,-155.57399191,0.000185,2]
[401369362,1768161040130,-5000.0,0.0001863,2]
[401369364,1768161040139,-5000.0,0.0001863,2]
[401369365,1768161040149,-154.1,0.000187,2]
[401369367,1768161040158,-5000.0,0.00018863,2]
[401369369,1768161040167,-303.10001603,0.000189,2]
[401369371,1768161040176,-303.10001603,0.000189,2]
[401369373,1768161040186,-151.0,0.00019,2]
[401369375,1768161040195,-152.19,0.00019,2]
[401369377,1768161040206,-155.5739919,0.00019086,2]
[401369379,1768161040215,-304.04513064,0.00019089,2]
[401369381,1768161040225,-303.10001603,0.00019089,2]
[401369383,1768161040234,-242.62689371,0.00019178,2]
[401369386,1768161040244,-2961.92726002,0.00019178,2]
[401369387,1768161040253,-5500.0,0.00019178,2]
[401369389,1768161040262,-3359.23,0.000192,2]
[401369391,1768161040272,-167.64,0.000192,2]
[401369394,1768161040282,-164.08,0.000192,2]
[401369396,1768161040291,-162.99,0.000192,2]
[401369398,1768161040300,-32701.71,0.000192,2]
[401369399,1768161040309,-643.68106745,0.00019264,2]
[401369402,1768161040319,-303.10001603,0.00019278,2]
[401369404,1768161040328,-3985.48773877,0.000194,2]
[401369406,1768161040338,-1000.0,0.0001943,2]
[401369408,1768161040347,-1000.0,0.0001943,2]
[401369410,1768161040356,-303.10001604,0.00019467,2]
[401369412,1768161040365,-154.1,0.000195,2]
[401369414,1768161040374,-700.0853132,0.00019584,2]
[401369416,1768161040384,-6000.0,0.00019726,2]
[401369418,1768161040396,-1041.66666667,0.00019852,2]
[401369420,1768161040406,-151.55000802,0.0002,2]
[401369422,1768161040415,-342.94,0.00020191,2]
[401369423,1768161040424,-154.1,0.000202,2]
[401369425,1768161040435,-151.0,0.000202,3]
[401369428,1768161040444,-6500.0,0.00020274,2]
[401369429,1768161040454,-152.19,0.000204,2]
[401369431,1768161040464,-270.0,0.00020607,2]
[401369433,1768161040474,-764.1,0.00020744,2]
[401369435,1768161040483,-344.0,0.00020817,2]
[401369437,1768161040493,-4623.1209168,0.00020822,2]
[401369439,1768161040502,-154.1,0.00021,2]
[401369441,1768161040512,-92701.510234,0.00021,2]
[401369443,1768161040521,-151.0,0.00021,2]
[401369445,1768161040532,-417.0,0.00021024,2]
[401369447,1768161040541,-500.0,0.00021097,2]
[401369449,1768161040550,-153.96461209,0.00021097,2]
[401369451,1768161040559,-151.71242224,0.00021097,2]
[401369453,1768161040568,-200.0,0.00021097,2]
[401369455,1768161040578,-500.0,0.00021097,2]
[401369457,1768161040587,-500.0,0.00021097,2]
[401369458,1768161040596,-500.0,0.00021097,2]
[401369459,1768161040606,-500.0,0.00021097,2]
[401369460,1768161040614,-500.0,0.00021097,2]
[401369461,1768161040623,-500.0,0.00021097,2]
[401369462,1768161040632,-210.56827625,0.00021097,2]
[401369463,1768161040641,-170.20314176,0.00021097,2]
[401369464,1768161040649,-276.55594314,0.00021097,2]
[401369465,1768161040659,-500.0,0.00021097,2]
[401369466,1768161040667,-151.54915065,0.00021097,2]
[401369467,1768161040676,-3669.21180387,0.00021097,2]
[401369468,1768161040685,-32701.71,0.000211,2]
[401369469,1768161040694,-2524.53827378,0.00021142,2]
[401369470,1768161040703,-500.0,0.00021234,2]
[401369471,1768161040712,-500.0,0.00021234,2]
[401369472,1768161040721,-500.0,0.00021234,2]
[401369473,1768161040729,-601.55233838,0.00021234,2]
[401369474,1768161040738,-500.0,0.00021234,2]
[401369475,1768161040747,-500.0,0.00021234,2]
[401369476,1768161040756,-500.0,0.00021234,2]
[401369477,1768161040765,-500.0,0.00021234,2]
[401369478,1768161040774,-299.999999,0.00021371,2]
[401369479,1768161040783,-500.0,0.00021371,2]
[401369480,1768161040791,-500.0,0.00021371,2]
[401369481,1768161040800,-500.0,0.00021371,2]
[401369483,1768161040809,-625.58637142,0.00021371,2]
[401369484,1768161040818,-500.0,0.00021371,2]
[401369485,1768161040827,-500.0,0.00021371,2]
[401369486,1768161040837,-150.69939601,0.00021371,2]
[401369487,1768161040846,-1000.0,0.00021373,10]
[401369488,1768161040855,-1000.0,0.00021373,10]
[401369489,1768161040864,-579.0,0.00021373,10]
[401369490,1768161040873,-151.0,0.000214,4]
[401369491,1768161040882,-3359.23,0.000214,2]
[401369492,1768161040891,-362.114,0.000215,2]
[401369493,1768161040900,-178.052,0.000215,2]
[401369494,1768161040910,-500.0,0.00021508,2]
[401369496,1768161040919,-500.0,0.00021508,2]
[401369498,1768161040928,-264.05569209,0.00021508,2]
[401369500,1768161040938,-500.0,0.00021508,2]
[401369502,1768161040947,-263.45377873,0.00021508,2]
[401369504,1768161040957,-479.25171681,0.00021508,2]
[401369506,1768161040967,-766.40918498,0.00021584,2]
[401369508,1768161040976,-2524.53827378,0.00021588,2]
[401369510,1768161040986,-500.0,0.00021645,2]
[401369512,1768161040996,-329.09707327,0.00021645,2]
[401369514,1768161041005,-500.0,0.00021645,2]
[401369516,1768161041014,-10000.0,0.00021682,2]
[401369518,1768161041023,-500.0,0.00021782,2]
[401369520,1768161041032,-477.92667681,0.00021782,2]
[401369522,1768161041041,-151.0,0.00021782,2]
[401369524,1768161041050,-12697.65441561,0.00021787,2]
[401369526,1768161041059,-154.1,0.000218,2]
[401369528,1768161041068,-152.19,0.000218,2]
[401369530,1768161041078,-2524.53827378,0.00021838,2]
[401369532,1768161041087,-4715.88256765,0.00021912,2]
[401369534,1768161041096,-842.382663,0.00021918,2]
[401369536,1768161041105,-151.0,0.00021918,2]
[401369538,1768161041114,-151.0,0.00021918,2]
[401369540,1768161041123,-151.0,0.00021918,2]
[401369542,1768161041133,-1638.845663,0.00021918,2]
[401369544,1768161041142,-1638.845663,0.00021918,2]
[401369546,1768161041151,-152.567384,0.00021918,2]
[401369548,1768161041160,-1638.845663,0.00021918,2]
[401369550,1768161041169,-1638.845663,0.00021918,2]
[401369552,1768161041178,-151.0,0.00021918,2]
[401369554,1768161041187,-161.662681,0.00021918,2]
[401369556,1768161041197,-151.0,0.00021918,2]
[401369558,1768161041206,-151.0,0.00021918,2]
[401369560,1768161041215,-151.0,0.00021918,2]
[401369562,1768161041224,-151.0,0.00021918,2]
[401369564,1768161041233,-151.0,0.00021918,2]
[401369566,1768161041243,-151.0,0.00021918,2]
[401369568,1768161041251,-151.0,0.00021918,2]
[401369570,1768161041261,-153.032917,0.00021918,2]
[401369572,1768161041270,-500.0,0.00021919,2]
[401369574,1768161041279,-2524.53827378,0.0002194,2]
[401369576,1768161041288,-2574.72426979,0.00021998,2]
[401369578,1768161041297,-71098.85167972,0.00022,2]
[401369580,1768161041306,-177.82907751,0.00022056,2]
[401369582,1768161041316,-3985.48773877,0.000221,2]
[401369584,1768161041325,-764.1,0.00022219,2]
[401369586,1768161041334,-177.31378459,0.00022237,2]
[401369588,1768161041343,-609.38512498,0.00022237,2]
[401369590,1768161041353,-547.1851626,0.00022237,2]
[401369592,1768161041362,-196.46008159,0.00022237,2]
[401369594,1768161041371,-182.81360973,0.00022237,2]
[401369596,1768161041380,-611.55196731,0.00022307,11]
[401369598,1768161041389,-2524.53827378,0.00022317,2]
[401369600,1768161041403,-547.1851626,0.0002237,9]
[401369602,1768161041412,-609.38512498,0.0002237,9]
[401369604,1768161041422,-300.0,0.00022466,2]
[401369606,1768161041431,-151.0,0.000225,9]
[401369608,1768161041441,-154.1,0.000225,2]
[401369610,1768161041450,-164.08,0.000225,7]
[401369612,1768161041461,-162.99,0.000225,7]
[401369614,1768161041471,-32701.71,0.000225,2]
[401369616,1768161041480,-547.1851626,0.00022504,17]
[401369618,1768161041489,-609.38512498,0.00022504,17]
[401369620,1768161041498,-342.91,0.00022507,2]
[401369622,1768161041508,-2524.53827378,0.00022576,2]
[401369624,1768161041517,-171.47,0.00022577,2]
[401369626,1768161041526,-151.0,0.000226,9]
[401369628,1768161041534,-547.1851626,0.00022638,25]
[401369630,1768161041544,-609.38512498,0.00022638,25]
[401369632,1768161041553,-151.0,0.000227,7]
[401369634,1768161041562,-547.1851626,0.00022772,32]
[401369636,1768161041571,-609.38512498,0.00022772,32]
[401369638,1768161041582,-3359.23,0.000228,14]
[401369640,1768161041591,-2524.53827378,0.00022864,2]
[401369642,1768161041600,-547.1851626,0.00022905,40]
[401369644,1768161041610,-609.38512498,0.00022905,40]
[401369646,1768161041618,-450.0,0.00023014,2]
[401369648,1768161041627,-547.1851626,0.00023039,48]
[401369650,1768161041636,-609.38512498,0.00023039,48]
[401369651,1768161041646,-1614.83566741,0.00023065,2]
[401369653,1768161041655,-6452.88332699,0.00023065,2]
[401369655,1768161041664,-151.0,0.00023065,2]
[401369657,1768161041673,-177.31378459,0.00023173,56]
[401369659,1768161041682,-196.46008159,0.00023173,56]
[401369661,1768161041691,-547.1851626,0.00023173,56]
[401369663,1768161041700,-609.38512498,0.00023173,56]
[401369665,1768161041710,-152.19,0.000232,2]
[401369667,1768161041719,-2524.53827378,0.00023285,2]
[401369669,1768161041728,-154.1,0.000233,2]
[401369671,1768161041737,-547.1851626,0.00023307,63]
[401369673,1768161041746,-609.38512498,0.00023307,63]
[401369675,1768161041755,-195.886572,0.00023396,2]
[401369677,1768161041764,-151.277163,0.00023396,2]
[401369679,1768161041774,-151.0,0.00023396,2]
[401369681,1768161041783,-151.0,0.00023396,2]
[401369683,1768161041792,-151.0,0.00023396,2]
[401369685,1768161041802,-250.0,0.00023396,2]
[401369687,1768161041811,-250.0,0.00023396,2]
[401369689,1768161041820,-250.0,0.00023396,2]
[401369691,1768161041830,-250.0,0.00023396,2]
[401369693,1768161041841,-250.0,0.00023396,2]
[401369695,1768161041850,-250.0,0.00023396,2]
[401369697,1768161041859,-250.0,0.00023396,2]
[401369699,1768161041868,-250.0,0.00023396,2]
[401369701,1768161041877,-291.2784889,0.00023396,2]
[401369703,1768161041887,-151.0,0.00023396,2]
[401369705,1768161041897,-151.0,0.00023396,2]
[401369707,1768161041907,-151.0,0.00023396,2]
[401369718,1768161041998,-151.0,0.00023396,2]
[401369720,1768161042008,-151.0,0.00023396,2]
[401369722,1768161042017,-156.587,0.00023396,2]
[401369724,1768161042026,-250.0,0.00023396,2]
[401369726,1768161042035,-151.0,0.00023396,2]
[401369728,1768161042044,-151.0,0.00023396,2]
[401369730,1768161042053,-152.09143049,0.00023396,2]
[401369732,1768161042063,-151.0,0.00023396,2]
[401369734,1768161042072,-151.0,0.00023396,2]
[401369736,1768161042083,-250.0,0.00023396,2]
[401369738,1768161042092,-151.0,0.00023396,2]
[401369740,1768161042101,-151.0,0.00023396,2]
[401369742,1768161042111,-250.0,0.00023396,2]
[401369744,1768161042120,-151.0,0.00023396,2]
[401369746,1768161042130,-151.0,0.00023396,2]
[401369748,1768161042139,-151.0,0.00023396,2]
[401369750,1768161042148,-151.0,0.00023396,2]
[401369752,1768161042157,-250.0,0.00023396,2]
[401369754,1768161042167,-151.0,0.00023396,2]
[401369756,1768161042176,-151.0,0.00023396,2]
[401369758,1768161042186,-151.0,0.00023396,2]
[401369760,1768161042196,-151.0,0.00023396,2]
[401369763,1768161042205,-496.47127164,0.00023396,2]
[401369766,1768161042215,-151.0,0.00023396,2]
[401369768,1768161042225,-250.0,0.00023396,2]
[401369771,1768161042234,-500.0,0.00023396,2]
[401369776,1768161042243,-151.0,0.00023396,2]
[401369777,1768161042252,-151.0,0.00023396,2]
[401369781,1768161042262,-265.04542702,0.00023396,2]
[401369783,1768161042271,-151.0,0.00023396,2]
[401369785,1768161042279,-151.0,0.00023396,2]
[401369786,1768161042290,-151.0,0.00023396,2]
[401369788,1768161042299,-151.0,0.00023396,2]
[401369791,1768161042309,-500.0,0.00023396,2]
[401369792,1768161042318,-151.0,0.00023396,2]
[401369795,1768161042328,-151.0,0.00023396,2]
[401369797,1768161042337,-151.0,0.00023396,2]
[401369799,1768161042347,-151.0,0.00023396,2]
[401369801,1768161042356,-500.0,0.00023396,2]
[401369803,1768161042365,-151.0,0.00023396,2]
[401369805,1768161042375,-151.0,0.00023396,2]
[401369807,1768161042384,-151.0,0.00023396,2]
[401369809,1768161042395,-151.0,0.00023396,2]
[401369810,1768161042404,-500.0,0.00023396,2]
[401369812,1768161042414,-151.0,0.00023396,2]
[401369814,1768161042423,-151.0,0.00023396,2]
[401369816,1768161042432,-151.0,0.00023396,2]
[401369818,1768161042442,-151.0,0.00023396,2]
[401369820,1768161042452,-500.0,0.00023396,2]
[401369823,1768161042461,-151.0,0.00023396,2]
[401369825,1768161042473,-151.0,0.00023396,2]
[401369827,1768161042483,-151.0,0.00023396,2]
[401369829,1768161042492,-151.0,0.00023396,2]
[401369831,1768161042501,-500.0,0.00023396,2]
[401369833,1768161042511,-151.0,0.00023396,2]
[401369835,1768161042521,-152.53645226,0.00023396,2]
[401369837,1768161042530,-151.0,0.00023396,2]
[401369839,1768161042539,-151.0,0.00023396,2]
[401369841,1768161042548,-500.0,0.00023396,2]
[401369843,1768161042557,-151.0,0.00023396,2]
[401369845,1768161042567,-151.0,0.00023396,2]
[401369847,1768161042576,-151.0,0.00023396,2]
[401369849,1768161042586,-500.0,0.00023396,2]
[401369851,1768161042595,-151.0,0.00023396,2]
[401369853,1768161042605,-151.0,0.00023396,2]
[401369855,1768161042613,-151.0,0.00023396,2]